bitfinex-derivatives/quotes_BTCF0:USTF0_20240910
["timestamp","ask_amount","ask_price","bid_price","bid_amount"]
[1725992720772,0.03346441,57704.0,57703.0,0.113646]
[1725992720964,0.03346441,57704.0,57703.0,0.027]
[1725992720965,0.086644,57704.0,57703.0,0.027]
[1725992721469,0.086649,57701.0,57694.0,0.086659]
[1725992721669,0.00140001,57704.0,57691.0,0.27]
[1725992721867,0.35803801,57708.0,57703.0,0.0008]
[1725992722075,0.086641,57706.0,57703.0,0.0008]
[1725992722264,0.086643,57705.0,57703.0,0.0008]
[1725992722872,0.001,57704.0,57703.0,0.0148]
[1725992723570,0.001,57704.0,57703.0,0.005]
[1725992723571,1.11988,57704.0,57703.0,0.005]
[1725992723767,1.476524,57704.0,57686.0,0.157366]
[1725992723970,0.27,57698.0,57688.0,0.086668]
[1725992724375,0.086655,57697.0,57689.0,0.086666]
[1725992724563,0.03189248,57706.0,57698.0,0.086652]
[1725992724762,0.086641,57706.0,57705.0,0.0004]
[1725992725071,0.606521,57706.0,57705.0,0.0004]
[1725992727167,0.611521,57706.0,57705.0,0.0004]
[1725992727474,0.620521,57706.0,57705.0,0.0004]
[1725992727768,0.620521,57706.0,57690.0,0.050966]
[1725992727769,0.014,57706.0,57690.0,0.050966]
[1725992727968,0.014,57706.0,57690.0,0.27]
[1725992727969,0.0004,57691.0,57690.0,0.27]
[1725992728176,0.3261,57705.0,57690.0,0.320966]
[1725992728373,0.100642,57706.0,57699.0,0.086651]
[1725992728591,0.014,57706.0,57705.0,0.0004]
[1725992728876,0.014,57706.0,57694.0,0.05072876]
[1725992728877,0.086655,57697.0,57694.0,0.05072876]
[1725992729176,0.0004,57695.0,57693.0,0.05072876]
[1725992729476,0.0004,57695.0,57690.0,0.008]
[1725992729477,0.086662,57692.0,57690.0,0.019]
[1725992729674,0.607064,57691.0,57690.0,0.019]
[1725992729974,0.0004,57691.0,57690.0,0.097665]
[1725992730162,0.0004,57691.0,57690.0,0.06172876]
[1725992730370,0.087064,57691.0,57690.0,0.06172876]
[1725992730664,0.087064,57691.0,57689.0,0.05072876]
[1725992730878,0.0004,57690.0,57688.0,0.05072876]
[1725992731080,0.0004,57689.0,57688.0,0.05072876]
[1725992731269,0.086667,57689.0,57688.0,0.05072876]
[1725992731576,0.0004,57690.0,57685.0,0.15462667]
[1725992731577,0.086668,57688.0,57685.0,0.15462667]
[1725992731879,0.086674,57684.0,57683.0,0.06795467]
[1725992732080,0.086676,57683.0,57682.0,0.06795467]
[1725992732373,0.086676,57683.0,57678.0,0.08499416]
[1725992732374,0.086677,57682.0,57678.0,0.08499416]
[1725992732675,0.086677,57682.0,57677.0,0.086684]
[1725992732676,0.0004,57680.0,57679.0,0.196081]
[1725992732877,0.087074,57684.0,57679.0,0.196081]
[1725992733068,0.086676,57683.0,57682.0,0.06789425]
[1725992733269,0.086676,57683.0,57682.0,0.07889425]
[1725992733468,0.086676,57683.0,57682.0,0.011]
[1725992733869,0.086676,57683.0,57682.0,0.06789425]
[1725992734178,0.086676,57683.0,57681.0,0.06789425]
[1725992734372,0.0004,57682.0,57681.0,0.06789425]
[1725992734566,0.0004,57682.0,57681.0,0.086679]
[1725992734772,0.0004,57682.0,57681.0,0.356679]
[1725992735176,0.0014,57684.0,57681.0,0.47767949]
[1725992735475,0.0014,57684.0,57683.0,0.25895575]
[1725992735680,0.0014,57684.0,57683.0,0.38151761]
[1725992735975,0.0004,57684.0,57683.0,0.174152]
[1725992736472,0.03048457,57695.0,57683.0,0.606756]
[1725992736677,0.086664,57691.0,57690.0,0.086665]
[1725992737085,0.086659,57695.0,57686.0,0.27]
[1725992737272,0.086662,57693.0,57692.0,0.086662]
[1725992738181,0.086674,57684.0,57683.0,0.019]
[1725992738575,0.086658,57695.0,57683.0,0.019]
[1725992738883,0.5462,57706.0,57683.0,0.019]
[1725992738884,0.27,57698.0,57683.0,0.105675]
[1725992739176,0.086674,57684.0,57683.0,0.097675]
[1725992739583,0.086676,57684.0,57679.0,0.1094]
[1725992739982,0.086676,57684.0,57683.0,0.094676]
[1725992740280,0.086676,57684.0,57683.0,0.105676]
[1725992740780,0.087674,57684.0,57679.0,0.1214]
[1725992740988,0.087674,57684.0,57679.0,0.1354]
[1725992741177,0.001,57684.0,57679.0,0.1354]
[1725992741371,0.08668,57680.0,57679.0,0.026]
[1725992742375,0.08668,57680.0,57679.0,0.012]
[1725992742774,0.08668,57680.0,57674.0,0.086689]
[1725992742981,0.086687,57676.0,57674.0,0.086689]
[1725992743174,0.08668,57680.0,57670.0,0.1064]
[1725992743376,0.086686,57676.0,57674.0,0.086688]
[1725992743595,0.086681,57680.0,57679.0,0.0008]
[1725992743783,0.0317609,57684.0,57679.0,0.0048]
[1725992743984,0.08667,57687.0,57683.0,0.0008]
[1725992744184,0.08667,57687.0,57686.0,0.0008]
[1725992744578,0.08667,57687.0,57685.0,0.13754269]
[1725992745485,0.00144,57694.0,57693.0,0.086661]
[1725992745687,0.32742,57706.0,57693.0,0.27]
[1725992745887,0.5883,57716.0,57705.0,0.0008]
[1725992745888,0.086632,57712.0,57705.0,0.0008]
[1725992746185,0.086635,57710.0,57705.0,0.086642]
[1725992746383,0.58962,57716.0,57705.0,0.086642]
[1725992746384,0.086638,57709.0,57705.0,0.086642]
[1725992746584,0.08663,57714.0,57706.0,0.086641]
[1725992746886,0.08663,57714.0,57713.0,0.0008]
[1725992747388,1.20643,57714.0,57713.0,0.0008]
[1725992748085,1.20643,57714.0,57709.0,0.05092366]
[1725992748293,1.20643,57714.0,57708.0,0.05092366]
[1725992748294,0.086637,57709.0,57708.0,0.05092366]
[1725992748588,0.086637,57709.0,57708.0,0.05099054]
[1725992749481,1.296114,57709.0,57708.0,0.05099054]
[1725992749683,0.27,57706.0,57702.0,0.06789821]
[1725992749885,0.086646,57703.0,57702.0,0.06789821]
[1725992750387,0.086646,57703.0,57702.0,0.068032]
[1725992750686,0.086646,57703.0,57698.0,0.08480375]
[1725992750881,0.086646,57703.0,57698.0,0.17145675]
[1725992751077,0.206298,57703.0,57698.0,0.086653]
[1725992751383,0.03347124,57702.0,57693.0,0.27]
[1725992751584,0.03347124,57701.0,57693.0,0.27]
[1725992751787,0.03347124,57700.0,57693.0,0.27]
[1725992751985,0.03347124,57699.0,57693.0,0.27]
[1725992752180,0.03347124,57698.0,57693.0,0.27]
[1725992752382,0.03347124,57697.0,57693.0,0.27]
[1725992752690,0.03347124,57696.0,57693.0,0.27]
[1725992752883,0.119652,57702.0,57693.0,0.27]
[1725992752884,0.119652,57702.0,57697.0,0.086654]
[1725992753087,0.03347124,57701.0,57697.0,0.086654]
[1725992753274,0.03347124,57700.0,57693.0,0.293]
[1725992753481,0.03347124,57699.0,57698.0,0.086653]
[1725992753792,0.206299,57702.0,57699.0,0.086652]
[1725992753978,0.03347137,57701.0,57699.0,0.086652]
[1725992754180,0.03347137,57700.0,57699.0,0.086652]
[1725992754377,0.04243293,57700.0,57699.0,0.086652]
[1725992754583,0.1625543,57700.0,57699.0,0.086652]
[1725992755088,0.1625543,57700.0,57697.0,0.008]
[1725992755089,0.086653,57699.0,57697.0,0.008]
[1725992755290,0.15434637,57698.0,57697.0,0.008]
[1725992755477,0.29930022,57701.0,57697.0,0.094655]
[1725992755684,0.21265122,57700.0,57699.0,0.006]
[1725992756093,0.21265122,57700.0,57699.0,0.01]
[1725992756094,0.0759077,57700.0,57699.0,0.01]
[1725992756393,0.0759077,57700.0,57699.0,0.004]
[1725992756885,0.0759077,57700.0,57699.0,0.01]
[1725992757286,0.0759077,57700.0,57699.0,0.096652]
[1725992758083,0.0759077,57700.0,57699.0,0.183304]
[1725992758285,0.0759077,57700.0,57699.0,1.410424]
[1725992758286,6.6e-07,57700.0,57699.0,1.410424]
[1725992758489,0.08663,57714.0,57713.0,0.086629]
[1725992758692,0.16252312,57714.0,57713.0,0.357029]
[1725992759000,0.08663,57714.0,57713.0,0.087029]
[1725992759506,0.08663,57714.0,57713.0,0.088029]
[1725992759681,0.09563,57714.0,57713.0,0.089029]
[1725992760495,0.09563,57714.0,57713.0,0.0024]
[1725992760693,0.61543,57714.0,57713.0,0.0024]
[1725992761286,0.60643,57714.0,57713.0,0.0014]
[1725992761594,0.61443,57714.0,57713.0,0.0024]
[1725992761795,0.61443,57714.0,57713.0,0.0014]
[1725992761996,0.70106,57714.0,57713.0,0.0014]
[1725992762899,0.09463,57714.0,57713.0,0.0014]
[1725992764398,0.181259,57714.0,57713.0,0.0014]
[1725992764597,0.094629,57714.0,57713.0,0.0014]
[1725992765095,0.207229,57714.0,57713.0,0.0014]
[1725992765889,0.293858,57714.0,57713.0,0.0014]
[1725992766111,0.086647,57703.0,57694.0,0.27]
[1725992766286,0.27,57709.0,57694.0,0.27]
[1725992766487,0.086648,57702.0,57699.0,0.086652]
[1725992766694,0.086648,57702.0,57700.0,0.08665]
[1725992767497,0.086649,57701.0,57700.0,0.08665]
[1725992767698,0.08665,57700.0,57697.0,0.086653]
[1725992767891,0.0004,57698.0,57694.0,0.086659]
[1725992768098,0.086661,57693.0,57692.0,0.086662]
[1725992768294,0.0004,57698.0,57694.0,0.014]
[1725992768705,0.0004,57698.0,57697.0,0.0004]
[1725992769394,0.2259,57698.0,57697.0,0.0004]
[1725992769702,0.2259,57698.0,57697.0,0.099055]
[1725992769703,0.0004,57698.0,57697.0,0.099055]
[1725992771197,0.0004,57698.0,57697.0,0.092055]
[1725992771604,0.0004,57698.0,57697.0,0.17871]
[1725992771795,0.0004,57698.0,57697.0,0.17471]
[1725992771997,0.0004,57698.0,57697.0,0.17771]
[1725992772293,0.0004,57698.0,57697.0,0.17871]
[1725992772892,0.086625,57717.0,57711.0,0.086634]
[1725992773208,0.086625,57717.0,57697.0,0.13909812]
[1725992773209,0.086629,57715.0,57713.0,0.0004]
[1725992773397,0.086629,57715.0,57697.0,0.14969812]
[1725992773398,0.27,57714.0,57697.0,0.06304312]
[1725992773615,0.27,57709.0,57697.0,0.012]
[1725992773791,0.27,57709.0,57701.0,0.086649]
[1725992774201,0.12089283,57705.0,57699.0,0.086652]
[1725992774504,0.12089283,57703.0,57700.0,0.08665]
[1725992774796,0.12089283,57703.0,57702.0,0.086647]
[1725992775106,0.03346928,57703.0,57701.0,0.004]
[1725992775301,0.03386928,57702.0,57701.0,0.096649]
[1725992775806,0.03386928,57702.0,57701.0,0.092649]
[1725992775997,0.03386928,57702.0,57701.0,0.086649]
[1725992777205,0.086649,57701.0,57700.0,0.005]
[1725992777400,0.92152294,57701.0,57694.0,0.086659]
[1725992777703,0.12115751,57697.0,57694.0,0.086659]
[1725992777912,0.15462679,57697.0,57696.0,0.086656]
[1725992778101,0.03346928,57697.0,57696.0,0.086656]
[1725992778304,0.12115751,57698.0,57696.0,0.086656]
[1725992778498,0.23346928,57697.0,57684.0,0.03103615]
[1725992778703,0.23346928,57697.0,57676.0,0.2]
[1725992778704,0.12115751,57686.0,57685.0,0.086672]
[1725992778900,0.03346928,57686.0,57672.0,0.2]
[1725992779101,0.0004,57673.0,57672.0,0.086692]
[1725992779297,0.0004,57673.0,57672.0,0.286692]
[1725992779609,0.0004,57673.0,57672.0,0.373384]
[1725992779803,0.0004,57673.0,57672.0,0.286692]
[1725992780308,1e-06,57673.0,57672.0,1.293544]
[1725992780507,1e-06,57673.0,57672.0,1.380236]
[1725992781116,0.03097238,57692.0,57690.0,0.086665]
[1725992781306,0.03097238,57692.0,57691.0,0.086664]
[1725992781517,0.4977,57695.0,57691.0,0.0004]
[1725992781707,0.4977,57695.0,57694.0,0.05142286]
[1725992781903,1.12831641,57695.0,57691.0,0.05061185]
[1725992782105,1.12831641,57695.0,57684.0,0.05102516]
[1725992782106,0.086668,57688.0,57684.0,0.05102516]
[1725992782304,0.27,57684.0,57683.0,0.086676]
[1725992782507,0.27,57684.0,57682.0,0.05100382]
[1725992782508,0.2704,57684.0,57682.0,0.05100382]
[1725992782709,0.1098,57683.0,57680.0,0.05100382]
[1725992782905,0.0004,57681.0,57680.0,0.05100382]
[1725992783110,0.1094,57683.0,57680.0,0.05100382]
[1725992783303,0.1094,57683.0,57682.0,0.0004]
[1725992783705,1.316156,57683.0,57682.0,0.0004]
[1725992784013,1.34775913,57683.0,57682.0,0.0004]
[1725992784610,1.34775913,57683.0,57682.0,0.0034]
[1725992785113,1.34775913,57683.0,57682.0,0.0004]
[1725992785701,1.26108313,57683.0,57682.0,0.0004]
[1725992785906,1.26108313,57683.0,57682.0,0.087077]
[1725992786214,0.41100313,57683.0,57682.0,0.087077]
[1725992787910,0.41300313,57683.0,57682.0,0.087077]
[1725992790310,0.03360313,57683.0,57682.0,0.173754]
[1725992790507,0.03360313,57683.0,57682.0,0.087077]
[1725992790715,0.03360313,57683.0,57672.0,0.1134]
[1725992790906,0.0004,57673.0,57668.0,0.05100382]
[1725992791113,0.0004,57673.0,57664.0,0.06802191]
[1725992791114,0.0004,57673.0,57664.0,0.05100382]
[1725992791309,0.0004,57673.0,57672.0,0.086692]
[1725992791919,0.0004,57673.0,57672.0,0.107692]
[1725992792724,0.03234515,57673.0,57672.0,0.107692]
[1725992793430,0.03234515,57673.0,57672.0,0.098692]
[1725992793616,0.03334515,57673.0,57672.0,0.107692]
[1725992796335,0.03334515,57673.0,57672.0,0.095692]
[1725992796526,0.03334515,57673.0,57672.0,0.107692]
[1725992796933,0.03334515,57673.0,57672.0,0.095692]
[1725992797228,0.03334515,57673.0,57672.0,0.106692]
[1725992797837,0.03234515,57673.0,57672.0,0.097692]
[1725992798137,0.12003615,57673.0,57672.0,0.105692]
[1725992798526,0.12003615,57673.0,57672.0,0.019]
[1725992798936,0.03334515,57673.0,57672.0,0.019]
[1725992800236,0.03334515,57673.0,57672.0,0.105692]
[1725992800634,0.12003615,57673.0,57672.0,0.019]
[1725992801850,0.47672715,57673.0,57672.0,0.019]
[1725992802038,0.39003615,57673.0,57672.0,0.019]
[1725992802232,0.23334515,57673.0,57672.0,0.019]
[1725992802426,0.32003615,57673.0,57672.0,0.019]
[1725992802946,0.40672715,57673.0,57672.0,0.019]
[1725992803640,0.40672715,57673.0,57659.0,0.19805036]
[1725992803641,1.35350515,57673.0,57663.0,0.05100382]
[1725992803840,0.086718,57655.0,57654.0,0.05100382]
[1725992804044,0.086719,57654.0,57649.0,0.05100382]
[1725992804239,0.086719,57654.0,57642.0,0.1119]
[1725992804240,0.08673,57647.0,57646.0,0.05100382]
[1725992804438,0.08673,57647.0,57637.0,0.19985036]
[1725992804439,0.2,57647.0,57641.0,0.05100382]
[1725992804647,0.2,57642.0,57641.0,0.05100382]
[1725992804837,0.2,57642.0,57640.0,0.05100382]
[1725992805045,0.2,57642.0,57639.0,0.086741]
[1725992806146,0.03163173,57642.0,57640.0,0.08674]
[1725992806343,0.31880883,57654.0,57636.0,0.1119]
[1725992806344,0.27,57650.0,57641.0,0.05100382]
[1725992806641,0.001,57654.0,57641.0,0.05100382]
[1725992806845,0.001,57654.0,57653.0,0.087521]
[1725992806846,0.03294718,57654.0,57653.0,0.087521]
[1725992807044,0.27,57668.0,57664.0,0.086704]
[1725992807243,0.27,57668.0,57667.0,0.0008]
[1725992807542,0.87,57668.0,57667.0,0.0008]
[1725992807736,0.27,57668.0,57667.0,0.0008]
[1725992808348,1.66024,57668.0,57658.0,0.05100382]
[1725992808543,0.27,57661.0,57649.0,0.0008]
[1725992808742,0.27,57655.0,57653.0,0.086721]
[1725992808934,0.27,57659.0,57654.0,0.086719]
[1725992809138,0.27,57659.0,57658.0,0.0008]
[1725992809349,0.356712,57659.0,57658.0,0.0008]
[1725992809647,0.356712,57659.0,57650.0,0.05100382]
[1725992809648,0.356712,57659.0,57650.0,0.086725]
[1725992809850,0.356712,57659.0,57651.0,0.086723]
[1725992810244,0.086713,57658.0,57651.0,0.086723]
[1725992810446,0.086715,57657.0,57651.0,0.086723]
[1725992810642,0.27,57659.0,57653.0,0.08672]
[1725992810843,0.03245757,57659.0,57658.0,0.0008]
[1725992811043,0.03245757,57659.0,57658.0,0.087513]
[1725992811245,0.03345757,57659.0,57658.0,0.087513]
[1725992811444,0.27,57659.0,57658.0,0.087513]
[1725992813047,0.272,57659.0,57658.0,0.0008]
[1725992813250,0.358712,57659.0,57658.0,0.0008]
[1725992813853,0.358712,57659.0,57658.0,0.05180382]
[1725992813854,0.002,57659.0,57658.0,0.05180382]
[1725992814054,0.002,57659.0,57658.0,0.607833]
[1725992814244,0.086701,57667.0,57664.0,0.086703]
[1725992814554,0.2704,57673.0,57666.0,0.05093167]
[1725992814753,0.086697,57669.0,57667.0,0.05093167]
[1725992815048,0.2704,57673.0,57668.0,0.05093167]
[1725992815049,0.357091,57673.0,57668.0,0.05093167]
[1725992815252,0.38760194,57673.0,57672.0,0.0008]
[1725992815759,0.39660194,57673.0,57672.0,0.0008]
[1725992816956,0.38960194,57673.0,57670.0,0.086695]
[1725992817144,0.086693,57672.0,57670.0,0.086695]
[1725992817746,0.04331713,57672.0,57670.0,0.086695]
[1725992818151,0.30291094,57673.0,57668.0,0.05093167]
[1725992818454,0.30291094,57673.0,57657.0,0.1075]
[1725992818455,0.27,57669.0,57667.0,0.05093167]
[1725992818755,0.086698,57668.0,57667.0,0.05093167]
[1725992819547,0.086698,57668.0,57666.0,0.05093167]
[1725992819753,0.086698,57668.0,57667.0,0.006]
[1725992820351,0.03091094,57673.0,57667.0,0.006]
[1725992820352,0.30091094,57673.0,57667.0,0.006]
[1725992820544,0.30091094,57673.0,57671.0,0.086693]
[1725992820749,0.30091094,57673.0,57672.0,0.087492]
[1725992820944,0.03091094,57673.0,57672.0,0.087492]
[1725992821850,0.0004,57673.0,57672.0,0.694344]
[1725992822050,0.03166392,57683.0,57682.0,0.086677]
[1725992822249,0.1088,57691.0,57690.0,0.086665]
[1725992822460,0.1163,57694.0,57692.0,0.086662]
[1725992822756,0.1163,57694.0,57682.0,0.0008]
[1725992822757,0.1163,57694.0,57686.0,0.05091186]
[1725992822948,0.1481919,57694.0,57688.0,0.086667]
[1725992823151,0.086666,57690.0,57688.0,0.086667]
[1725992824057,0.086667,57689.0,57684.0,0.05091186]
[1725992824461,0.086667,57689.0,57686.0,0.086671]
[1725992826757,0.356661,57693.0,57682.0,0.0008]
[1725992826957,0.002,57689.0,57686.0,0.086671]
[1725992827357,0.002,57689.0,57687.0,0.086669]
[1725992828160,0.002,57689.0,57688.0,0.086668]
[1725992828564,0.003,57689.0,57688.0,0.086668]
[1725992829163,0.004,57689.0,57688.0,0.086668]
[1725992829351,0.004,57689.0,57688.0,1.380044]
[1725992829549,0.086642,57706.0,57688.0,1.12004]
[1725992829871,0.086636,57710.0,57705.0,0.0004]
[1725992830165,0.086636,57710.0,57709.0,0.0004]
[1725992830955,0.20440288,57710.0,57709.0,0.0004]
[1725992831159,0.086665,57691.0,57689.0,0.1131]
[1725992831461,1.15097088,57710.0,57676.0,0.086685]
[1725992831462,0.086667,57689.0,57687.0,0.086669]
[1725992831761,0.0004,57688.0,57687.0,0.086669]
[1725992832559,0.087068,57688.0,57677.0,0.2193]
[1725992832953,0.087068,57688.0,57683.0,0.086675]
[1725992832954,0.08667,57687.0,57683.0,0.086675]
[1725992833155,0.086671,57686.0,57683.0,0.086675]
[1725992833463,0.086671,57686.0,57684.0,0.086674]
[1725992833862,0.002,57688.0,57687.0,0.08667]
[1725992834055,0.002,57688.0,57687.0,0.08707]
[1725992835160,0.088668,57688.0,57687.0,0.0004]
[1725992835551,0.088668,57688.0,57687.0,0.08707]
[1725992835552,0.002,57688.0,57687.0,0.08707]
[1725992835756,0.001,57688.0,57687.0,0.08707]
[1725992836865,0.004,57688.0,57687.0,0.08707]
[1725992839568,0.090668,57688.0,57687.0,0.08707]
[1725992839768,0.090668,57688.0,57687.0,0.0004]
[1725992839968,0.086674,57685.0,57677.0,0.2193]
[1725992840268,0.086674,57685.0,57684.0,0.086673]
[1725992841366,0.004,57688.0,57681.0,0.086678]
[1725992841367,0.086678,57682.0,57681.0,0.086678]
[1725992841559,0.086675,57684.0,57683.0,0.086674]
[1725992841871,0.086675,57684.0,57683.0,0.13797233]
[1725992842168,0.17335,57684.0,57683.0,0.0004]
[1725992842466,0.086675,57684.0,57683.0,0.0004]
[1725992843062,0.086675,57684.0,57683.0,0.0034]
[1725992843262,0.086675,57684.0,57683.0,0.0044]
[1725992843459,0.086675,57684.0,57683.0,0.090676]
[1725992843771,0.086675,57684.0,57683.0,0.14157433]
[1725992844367,0.1124,57688.0,57683.0,0.004]
[1725992844567,0.086671,57686.0,57685.0,0.05094739]
[1725992845179,0.086673,57685.0,57684.0,0.05094739]
[1725992845369,0.086674,57684.0,57683.0,0.090676]
[1725992845674,0.086674,57684.0,57681.0,0.06788248]
[1725992845675,0.086677,57682.0,57681.0,0.06788248]
[1725992845972,0.086677,57682.0,57681.0,0.15456148]
[1725992846372,0.086677,57682.0,57681.0,0.1546455]
[1725992848272,0.086677,57682.0,57681.0,0.092679]
[1725992848473,0.173354,57682.0,57681.0,0.006]
[1725992848663,0.173354,57682.0,57681.0,0.01]
[1725992848875,0.400554,57682.0,57681.0,0.01]
[1725992849573,0.43106195,57682.0,57681.0,0.01]
[1725992849979,0.22868495,57682.0,57681.0,0.004]
[1725992850475,0.086683,57678.0,57677.0,0.086684]
[1725992851963,0.086692,57672.0,57669.0,0.05102536]
[1725992852168,0.14600795,57682.0,57660.0,0.05102536]
[1725992852169,0.086709,57661.0,57660.0,0.05102536]
[1725992852468,0.086712,57659.0,57655.0,0.086718]
[1725992852668,0.2,57657.0,57651.0,0.05102536]
[1725992852868,0.2,57651.0,57650.0,0.086725]
[1725992854174,0.2,57651.0,57645.0,0.205532]
[1725992854374,0.001,57661.0,57636.0,0.05102536]
[1725992854375,0.2,57646.0,57636.0,0.05102536]
[1725992854576,0.001,57661.0,57637.0,0.086745]
[1725992854577,0.2,57639.0,57637.0,0.086745]
[1725992854884,0.2,57639.0,57633.0,0.1188]
[1725992855067,0.1088,57650.0,57633.0,0.1188]
[1725992855068,0.2,57635.0,57633.0,0.1188]
[1725992855470,0.2,57635.0,57634.0,0.08675]
[1725992856086,0.088743,57639.0,57634.0,0.08675]
[1725992856376,0.088742,57639.0,57638.0,0.0008]
[1725992856575,0.086742,57639.0,57638.0,0.0008]
[1725992856877,0.1088,57650.0,57638.0,0.0008]
[1725992856878,0.27,57645.0,57638.0,0.0008]
[1725992857082,0.27,57645.0,57644.0,0.0008]
[1725992857278,0.356733,57645.0,57644.0,0.0008]
[1725992857879,0.366733,57645.0,57644.0,0.0008]
[1725992858182,0.887173,57645.0,57644.0,0.0008]
[1725992858678,0.887173,57645.0,57634.0,0.014]
[1725992858679,0.08674,57641.0,57634.0,0.014]
[1725992858980,0.087742,57639.0,57638.0,0.014]
[1725992859588,0.001,57645.0,57638.0,0.014]
[1725992859589,0.088734,57645.0,57644.0,0.014]
[1725992859773,0.002,57645.0,57644.0,0.014]
[1725992859972,0.002,57645.0,57644.0,0.0148]
[1725992860179,0.001,57645.0,57644.0,0.0148]
[1725992860380,0.001,57645.0,57644.0,0.101534]
[1725992861078,0.27,57649.0,57645.0,0.086733]
[1725992861387,0.27,57649.0,57648.0,0.0008]
[1725992861585,0.356727,57649.0,57648.0,0.0008]
[1725992862289,0.356727,57649.0,57648.0,0.087528]
[1725992862290,0.271,57649.0,57648.0,0.087528]
[1725992862881,0.22760777,57649.0,57648.0,0.099528]
[1725992863086,0.31533477,57649.0,57648.0,0.0218]
[1725992863490,0.22860777,57649.0,57648.0,0.108528]
[1725992865880,0.31533477,57649.0,57648.0,0.0218]
[1725992866089,0.31533477,57649.0,57648.0,0.108528]
[1725992867691,0.31533477,57649.0,57648.0,0.0218]
[1725992871694,1.52246177,57649.0,57648.0,0.0218]
[1725992871882,1.52246177,57649.0,57625.0,0.086762]
[1725992871883,0.086736,57643.0,57632.0,0.05102536]
[1725992872085,0.27,57641.0,57631.0,0.13777936]
[1725992872680,0.356739,57641.0,57639.0,0.086741]
[1725992872888,0.356739,57641.0,57640.0,0.08674]
[1725992873487,0.086744,57638.0,57636.0,0.086746]
[1725992873794,0.27,57641.0,57632.0,0.06502536]
[1725992873992,0.356739,57641.0,57640.0,0.0008]
[1725992874396,0.356739,57641.0,57640.0,0.08754]
[1725992874599,0.271,57641.0,57640.0,0.08754]
[1725992874791,0.271,57641.0,57640.0,0.0008]
[1725992875198,0.356739,57641.0,57640.0,0.0008]
[1725992875396,0.30226059,57641.0,57640.0,0.08754]
[1725992875694,0.03226059,57641.0,57640.0,0.08754]
[1725992876088,0.03426059,57641.0,57640.0,0.09354]
[1725992876294,0.03426059,57641.0,57640.0,0.14456536]
[1725992877296,0.03426059,57641.0,57640.0,0.09354]
[1725992878684,0.23426059,57641.0,57640.0,0.09354]
[1725992880388,0.32099959,57641.0,57640.0,0.09354]
[1725992880592,0.40773859,57641.0,57640.0,0.0068]
[1725992880799,0.40773859,57641.0,57640.0,0.05785084]
[1725992880999,1.64301859,57641.0,57640.0,0.0068]
[1725992881294,1.64301859,57641.0,57640.0,0.05785084]
[1725992881295,1.55627959,57641.0,57640.0,0.05785084]
[1725992881498,0.23426059,57641.0,57640.0,0.0068]
[1725992881706,0.23426059,57641.0,57640.0,0.30212689]
[1725992881994,0.03426059,57641.0,57640.0,0.30212689]
[1725992882409,0.003,57641.0,57640.0,0.44726118]
[1725992882599,0.003,57641.0,57640.0,0.53400118]
[1725992882901,0.3261,57655.0,57640.0,0.53400118]
[1725992882902,0.2,57660.0,57659.0,0.086712]
[1725992883198,0.5462,57664.0,57663.0,0.086706]
[1725992883199,0.00132,57664.0,57663.0,0.086706]
[1725992883399,0.03262324,57664.0,57663.0,0.086706]
[1725992883593,0.2,57673.0,57672.0,0.086692]
[1725992883797,0.2,57677.0,57672.0,0.0008]
[1725992883996,0.2,57677.0,57676.0,0.087486]
[1725992884300,0.2289,57682.0,57677.0,0.086685]
[1725992884301,0.086681,57680.0,57677.0,0.086685]
[1725992884507,0.086682,57679.0,57677.0,0.05102037]
[1725992884708,0.356682,57679.0,57677.0,0.05102037]
[1725992885298,0.356682,57679.0,57678.0,0.05102037]
[1725992885496,0.27,57679.0,57678.0,0.086683]
[1725992885801,0.14505026,57682.0,57680.0,0.08668]
[1725992885802,0.03055026,57682.0,57680.0,0.08668]
[1725992886004,0.2257,57690.0,57675.0,0.06810535]
[1725992886005,0.356669,57688.0,57681.0,0.05176459]
[1725992886399,0.356669,57688.0,57687.0,0.0008]
[1725992887810,0.36548324,57688.0,57687.0,0.0008]
[1725992888112,0.370669,57688.0,57687.0,0.0018]
[1725992888308,1.490709,57688.0,57687.0,0.0018]
[1725992888610,1.490709,57688.0,57687.0,0.001]
[1725992888811,0.890709,57688.0,57687.0,0.001]
[1725992889611,0.890709,57688.0,57687.0,0.002]
[1725992889998,1.490709,57688.0,57687.0,0.002]
[1725992890605,0.086682,57679.0,57678.0,0.05096459]
[1725992890801,0.356682,57679.0,57678.0,0.05096459]
[1725992891000,0.356682,57679.0,57660.0,0.35671]
[1725992891207,0.356682,57679.0,57674.0,0.086689]
[1725992892101,0.356682,57679.0,57660.0,0.35671]
[1725992892301,0.27,57679.0,57664.0,0.086704]
[1725992892505,0.27,57683.0,57681.0,0.086678]
[1725992892698,0.284,57688.0,57682.0,0.0008]
[1725992892902,0.27,57688.0,57687.0,0.0008]
[1725992893114,0.086674,57685.0,57682.0,0.0008]
[1725992893298,0.27,57683.0,57682.0,0.0008]
[1725992893901,0.356676,57683.0,57682.0,0.0018]
[1725992894107,0.356676,57683.0,57682.0,0.0028]
[1725992894504,0.27,57683.0,57682.0,0.089477]
[1725992894715,0.284,57688.0,57687.0,0.08667]
[1725992894908,0.31496077,57688.0,57687.0,0.08747]
[1725992895605,0.30096077,57688.0,57687.0,0.08747]
[1725992896007,0.38762877,57688.0,57687.0,0.08747]
[1725992896408,0.03096077,57688.0,57687.0,0.08747]
[1725992896609,0.003,57688.0,57687.0,0.08747]
[1725992899517,0.30068656,57694.0,57687.0,0.08747]
[1725992899518,0.3261,57702.0,57688.0,0.086668]